[Event "December 19 Late 2023"]
[Site "https://www.chess.com"]
[Date "2023.12.19"]
[Round "8"]
[White "Shapiro, Daniel"]
[Black "Sivakumar, Shaashwath"]
[Result "0-1"]
[Board "97"]
[TimeControl "180+1"]
[WhiteFideId "2001780"]
[BlackFideId "30912156"]
[WhiteElo "2308"]
[BlackElo "2137"]
[WhiteTeam "USA"]
[BlackTeam "USA"]
[WhiteClock "0:00:00"]
[BlackClock "0:01:02"]

1. d4 {[%clk 0:03:00]}  d5 {[%clk 0:02:57]} 2. c4 {[%clk 0:03:00]}  c6 {[%clk 0:02:55]} 3. Nf3 {[%clk 0:03:00]}  Nf6 {[%clk 0:02:54]} 4. Qb3 {[%clk 0:03:00]}  a6 {[%clk 0:02:51]} 5. a4 {[%clk 0:02:42]}  a5 {[%clk 0:02:47]} 6. Nc3 {[%clk 0:02:25]}  dxc4 {[%clk 0:02:45]} 7. Qxc4 {[%clk 0:02:24]}  Bf5 {[%clk 0:02:45]} 8. e3 {[%clk 0:02:02]}  e6 {[%clk 0:02:44]} 9. Bd3 {[%clk 0:01:47]}  Bxd3 {[%clk 0:02:39]} 10. Qxd3 {[%clk 0:01:47]}  Nbd7 {[%clk 0:02:36]} 11. e4 {[%clk 0:01:42]}  Bb4 {[%clk 0:02:36]} 12. Qe2 {[%clk 0:01:29]}  Qe7 {[%clk 0:02:30]} 13. Bf4 {[%clk 0:01:18]}  O-O {[%clk 0:02:22]} 14. h3 {[%clk 0:01:12]}  Nh5 {[%clk 0:02:21]} 15. Bh2 {[%clk 0:01:10]}  Nhf6 {[%clk 0:02:14]} 16. O-O {[%clk 0:01:09]}  Rfd8 {[%clk 0:02:12]} 17. Rfd1 {[%clk 0:01:08]}  Nf8 {[%clk 0:02:01]} 18. Rac1 {[%clk 0:01:05]}  Ng6 {[%clk 0:02:00]} 19. Ne5 {[%clk 0:01:00]}  Nxe5 {[%clk 0:01:58]} 20. Bxe5 {[%clk 0:01:00]}  Nd7 {[%clk 0:01:57]} 21. Bc7 {[%clk 0:00:58]}  Rdc8 {[%clk 0:01:55]} 22. Bg3 {[%clk 0:00:57]}  e5 {[%clk 0:01:54]} 23. d5 {[%clk 0:00:54]}  Nc5 {[%clk 0:01:49]} 24. d6 {[%clk 0:00:52]}  Qe6 {[%clk 0:01:44]} 25. Qe3 {[%clk 0:00:40]}  Nb3 {[%clk 0:01:38]} 26. Rc2 {[%clk 0:00:37]}  Nd4 {[%clk 0:01:35]} 27. Rcd2 {[%clk 0:00:34]}  Bxd6 {[%clk 0:01:31]} 28. f4 {[%clk 0:00:33]}  Bc5 {[%clk 0:01:26]} 29. Bf2 {[%clk 0:00:28]}  Nb3 {[%clk 0:01:26]} 30. Qf3 {[%clk 0:00:18]}  Nxd2 {[%clk 0:01:24]} 31. Rxd2 {[%clk 0:00:18]}  Bxf2+ {[%clk 0:01:24]} 32. Qxf2 {[%clk 0:00:19]}  exf4 {[%clk 0:01:23]} 33. Qxf4 {[%clk 0:00:18]}  Rd8 {[%clk 0:01:23]} 34. Rf2 {[%clk 0:00:18]}  f6 {[%clk 0:01:22]} 35. g4 {[%clk 0:00:17]}  Rd4 {[%clk 0:01:16]} 36. Qc7 {[%clk 0:00:15]}  Qd7 {[%clk 0:01:14]} 37. Qf4 {[%clk 0:00:11]}  Qd6 {[%clk 0:01:10]} 38. Qf3 {[%clk 0:00:09]}  Rd3 {[%clk 0:01:07]} 39. Qf5 {[%clk 0:00:07]}  Rd8 {[%clk 0:01:04]} 40. g5 {[%clk 0:00:06]}  Qg3+ {[%clk 0:01:02]} 41. Rg2 {[%clk 0:00:00]}  Rd1+ {[%clk 0:01:02]} 0-1

[Event "December 19 Late 2023"]
[Site "https://www.chess.com"]
[Date "2023.12.19"]
[Round "8"]
[White "Blanco Diez, David"]
[Black "Travadon, Loic"]
[Result "1-0"]
[Board "101"]
[TimeControl "180+1"]
[WhiteFideId "32032927"]
[BlackFideId "26092131"]
[WhiteElo "2170"]
[BlackElo "2406"]
[WhiteTeam "ESP"]
[BlackTeam "FRA"]
[WhiteClock "0:00:06"]
[BlackClock "0:00:38"]

1. Nf3 {[%clk 0:02:31]}  e6 {[%clk 0:03:00]} 2. b3 {[%clk 0:02:30]}  b6 {[%clk 0:03:01]} 3. Bb2 {[%clk 0:02:31]}  Bb7 {[%clk 0:03:01]} 4. c4 {[%clk 0:02:26]}  Nf6 {[%clk 0:03:00]} 5. g3 {[%clk 0:02:26]}  g6 {[%clk 0:02:59]} 6. Bg2 {[%clk 0:02:25]}  Bg7 {[%clk 0:02:59]} 7. O-O {[%clk 0:02:26]}  O-O {[%clk 0:02:57]} 8. d4 {[%clk 0:02:24]}  d5 {[%clk 0:02:57]} 9. e3 {[%clk 0:02:17]}  Nbd7 {[%clk 0:02:56]} 10. Nc3 {[%clk 0:02:15]}  c6 {[%clk 0:02:51]} 11. Qe2 {[%clk 0:02:13]}  Rc8 {[%clk 0:02:41]} 12. Rad1 {[%clk 0:02:10]}  Qc7 {[%clk 0:02:37]} 13. Rfe1 {[%clk 0:01:51]}  Qb8 {[%clk 0:02:36]} 14. Rc1 {[%clk 0:01:38]}  Qa8 {[%clk 0:02:34]} 15. Red1 {[%clk 0:01:36]}  Rfe8 {[%clk 0:02:32]} 16. cxd5 {[%clk 0:01:30]}  exd5 {[%clk 0:02:30]} 17. Rc2 {[%clk 0:01:24]}  a5 {[%clk 0:02:25]} 18. Rdc1 {[%clk 0:01:24]}  Ba6 {[%clk 0:02:24]} 19. Qd2 {[%clk 0:01:23]}  Ne4 {[%clk 0:02:19]} 20. Nxe4 {[%clk 0:01:23]}  dxe4 {[%clk 0:02:19]} 21. Ne1 {[%clk 0:01:06]}  f5 {[%clk 0:02:19]} 22. Bf1 {[%clk 0:01:04]}  Bxf1 {[%clk 0:02:09]} 23. Kxf1 {[%clk 0:01:04]}  c5 {[%clk 0:02:04]} 24. Ng2 {[%clk 0:00:44]}  cxd4 {[%clk 0:01:58]} 25. Bxd4 {[%clk 0:00:42]}  Rxc2 {[%clk 0:01:56]} 26. Rxc2 {[%clk 0:00:40]}  Rc8 {[%clk 0:01:50]} 27. Bxg7 {[%clk 0:00:37]}  Rxc2 {[%clk 0:01:45]} 28. Qxc2 {[%clk 0:00:29]}  Kxg7 {[%clk 0:01:43]} 29. Qc3+ {[%clk 0:00:26]}  Kf7 {[%clk 0:01:41]} 30. Qc4+ {[%clk 0:00:26]}  Ke7 {[%clk 0:01:39]} 31. Nf4 {[%clk 0:00:26]}  Nc5 {[%clk 0:01:27]} 32. Qd4 {[%clk 0:00:19]}  Qc6 {[%clk 0:01:10]} 33. Qg7+ {[%clk 0:00:19]}  Kd8 {[%clk 0:01:10]} 34. Qxh7 {[%clk 0:00:16]}  Nd3 {[%clk 0:01:09]} 35. Qg8+ {[%clk 0:00:12]}  Kd7 {[%clk 0:01:08]} 36. Nxd3 {[%clk 0:00:04]}  exd3 {[%clk 0:01:06]} 37. Qf7+ {[%clk 0:00:04]}  Kd8 {[%clk 0:01:01]} 38. Qf8+ {[%clk 0:00:04]}  Kd7 {[%clk 0:01:00]} 39. Qf7+ {[%clk 0:00:04]}  Kc8 {[%clk 0:00:59]} 40. Qc4 {[%clk 0:00:03]}  Kc7 {[%clk 0:00:51]} 41. Ke1 {[%clk 0:00:03]}  Qxc4 {[%clk 0:00:48]} 42. bxc4 {[%clk 0:00:04]}  Kc6 {[%clk 0:00:47]} 43. Kd2 {[%clk 0:00:05]}  Kc5 {[%clk 0:00:48]} 44. Kxd3 {[%clk 0:00:05]}  Kb4 {[%clk 0:00:48]} 45. f3 {[%clk 0:00:04]}  Ka3 {[%clk 0:00:44]} 46. e4 {[%clk 0:00:04]}  Kxa2 {[%clk 0:00:45]} 47. e5 {[%clk 0:00:04]}  a4 {[%clk 0:00:45]} 48. e6 {[%clk 0:00:04]}  Kb1 {[%clk 0:00:44]} 49. e7 {[%clk 0:00:05]}  a3 {[%clk 0:00:45]} 50. e8=Q {[%clk 0:00:05]}  a2 {[%clk 0:00:46]} 51. Qe1+ {[%clk 0:00:05]}  Kb2 {[%clk 0:00:46]} 52. Qd2+ {[%clk 0:00:05]}  Kb1 {[%clk 0:00:45]} 53. Qc2+ {[%clk 0:00:05]}  Ka1 {[%clk 0:00:38]} 54. Kc3 {[%clk 0:00:06]} 1-0

[Event "December 19 Late 2023"]
[Site "https://www.chess.com"]
[Date "2023.12.19"]
[Round "8"]
[White "UnTucopalaTimba"]
[Black "Seletsky, Grigory"]
[Result "1-0"]
[Board "104"]
[TimeControl "180+1"]
[BlackFideId "14112191"]
[WhiteElo "2203"]
[BlackElo "2482"]
[BlackTeam "UKR"]
[WhiteClock "0:00:06"]
[BlackClock "0:00:04"]

1. e4 {[%clk 0:03:00]}  e6 {[%clk 0:02:59]} 2. d4 {[%clk 0:02:58]}  d5 {[%clk 0:03:00]} 3. e5 {[%clk 0:02:59]}  c5 {[%clk 0:02:59]} 4. c3 {[%clk 0:02:58]}  Nc6 {[%clk 0:03:00]} 5. Nf3 {[%clk 0:02:58]}  Bd7 {[%clk 0:02:57]} 6. Be2 {[%clk 0:02:55]}  Nge7 {[%clk 0:02:55]} 7. Bd3 {[%clk 0:02:55]}  cxd4 {[%clk 0:02:46]} 8. cxd4 {[%clk 0:02:54]}  Nf5 {[%clk 0:02:40]} 9. Bxf5 {[%clk 0:02:54]}  exf5 {[%clk 0:02:41]} 10. O-O {[%clk 0:02:51]}  Be7 {[%clk 0:02:39]} 11. Qb3 {[%clk 0:02:47]}  Be6 {[%clk 0:02:26]} 12. Qxb7 {[%clk 0:02:45]}  Rc8 {[%clk 0:02:08]} 13. Nc3 {[%clk 0:02:38]}  O-O {[%clk 0:02:08]} 14. a3 {[%clk 0:02:35]}  h6 {[%clk 0:02:08]} 15. Qa6 {[%clk 0:02:30]}  g5 {[%clk 0:02:05]} 16. h3 {[%clk 0:02:24]}  f4 {[%clk 0:02:04]} 17. Qd3 {[%clk 0:02:21]}  Qd7 {[%clk 0:02:04]} 18. Kh2 {[%clk 0:02:16]}  Bf5 {[%clk 0:02:03]} 19. Qd1 {[%clk 0:02:12]}  Kg7 {[%clk 0:01:56]} 20. Ng1 {[%clk 0:02:04]}  Nd8 {[%clk 0:01:52]} 21. g4 {[%clk 0:01:59]}  Bg6 {[%clk 0:01:46]} 22. Qf3 {[%clk 0:01:52]}  Ne6 {[%clk 0:01:45]} 23. Nge2 {[%clk 0:01:47]}  Rfd8 {[%clk 0:01:43]} 24. Rd1 {[%clk 0:01:42]}  Rc4 {[%clk 0:01:41]} 25. b3 {[%clk 0:01:37]}  Rcc8 {[%clk 0:01:39]} 26. Bb2 {[%clk 0:01:31]}  Bc2 {[%clk 0:01:36]} 27. Rd2 {[%clk 0:01:29]}  Bxb3 {[%clk 0:01:36]} 28. h4 {[%clk 0:01:27]}  gxh4 {[%clk 0:01:27]} 29. Nxf4 {[%clk 0:01:25]}  Nxf4 {[%clk 0:01:25]} 30. Qxf4 {[%clk 0:01:24]}  Bg5 {[%clk 0:01:25]} 31. Qf3 {[%clk 0:01:09]}  Bxd2 {[%clk 0:01:26]} 32. Qf6+ {[%clk 0:01:03]}  Kg8 {[%clk 0:01:26]} 33. Ne2 {[%clk 0:00:55]}  Qe6 {[%clk 0:01:20]} 34. Qf3 {[%clk 0:00:50]}  Rc2 {[%clk 0:01:13]} 35. Qxb3 {[%clk 0:00:44]}  Qxg4 {[%clk 0:00:57]} 36. Rg1 {[%clk 0:00:43]}  Qxg1+ {[%clk 0:00:49]} 37. Kxg1 {[%clk 0:00:40]}  Rc6 {[%clk 0:00:49]} 38. Kg2 {[%clk 0:00:36]}  Kh7 {[%clk 0:00:44]} 39. Qd3+ {[%clk 0:00:35]}  Rg6+ {[%clk 0:00:44]} 40. Kh3 {[%clk 0:00:34]}  Be1 {[%clk 0:00:37]} 41. Nf4 {[%clk 0:00:32]}  Rb8 {[%clk 0:00:38]} 42. Nxg6 {[%clk 0:00:31]}  fxg6 {[%clk 0:00:38]} 43. Bc1 {[%clk 0:00:27]}  Rf8 {[%clk 0:00:30]} 44. f3 {[%clk 0:00:25]}  Bg3 {[%clk 0:00:28]} 45. Bd2 {[%clk 0:00:23]}  Kg7 {[%clk 0:00:27]} 46. Kg2 {[%clk 0:00:21]}  g5 {[%clk 0:00:28]} 47. Bb4 {[%clk 0:00:20]}  h5 {[%clk 0:00:24]} 48. Qa6 {[%clk 0:00:19]}  Rf7 {[%clk 0:00:20]} 49. e6 {[%clk 0:00:16]}  Rc7 {[%clk 0:00:20]} 50. Qd3 {[%clk 0:00:10]}  Bf4 {[%clk 0:00:17]} 51. Qf5 {[%clk 0:00:10]}  a5 {[%clk 0:00:14]} 52. Bxa5 {[%clk 0:00:09]}  Rb7 {[%clk 0:00:11]} 53. Bb4 {[%clk 0:00:08]}  Rc7 {[%clk 0:00:10]} 54. e7 {[%clk 0:00:08]}  h3+ {[%clk 0:00:06]} 55. Kxh3 {[%clk 0:00:07]}  g4+ {[%clk 0:00:07]} 56. fxg4 {[%clk 0:00:07]}  hxg4+ {[%clk 0:00:07]} 57. Kxg4 {[%clk 0:00:07]}  Bh6 {[%clk 0:00:04]} 58. e8=N+ {[%clk 0:00:06]} 1-0

[Event "December 19 Late 2023"]
[Site "https://www.chess.com"]
[Date "2023.12.19"]
[Round "8"]
[White "Nunez V, Gustavo Eduardo"]
[Black "Antonio, Jorge Carlos"]
[Result "1-0"]
[Board "106"]
[TimeControl "180+1"]
[WhiteFideId "4403690"]
[BlackFideId "113190"]
[WhiteElo "2167"]
[BlackElo "2247"]
[WhiteTeam "COL"]
[BlackTeam "ARG"]
[WhiteClock "0:01:40"]
[BlackClock "0:01:41"]

1. e4 {[%clk 0:02:57]}  c5 {[%clk 0:02:59]} 2. Nf3 {[%clk 0:02:53]}  e6 {[%clk 0:02:59]} 3. d4 {[%clk 0:02:51]}  cxd4 {[%clk 0:02:59]} 4. Nxd4 {[%clk 0:02:52]}  a6 {[%clk 0:02:59]} 5. c4 {[%clk 0:02:52]}  Qc7 {[%clk 0:02:59]} 6. Nc3 {[%clk 0:02:52]}  Nc6 {[%clk 0:02:59]} 7. Be3 {[%clk 0:02:51]}  Nf6 {[%clk 0:02:56]} 8. f3 {[%clk 0:02:50]}  Be7 {[%clk 0:02:56]} 9. Be2 {[%clk 0:02:46]}  O-O {[%clk 0:02:56]} 10. O-O {[%clk 0:02:46]}  d5 {[%clk 0:02:56]} 11. cxd5 {[%clk 0:02:45]}  exd5 {[%clk 0:02:56]} 12. Nxd5 {[%clk 0:02:31]}  Nxd5 {[%clk 0:02:52]} 13. exd5 {[%clk 0:02:32]}  Nb4 {[%clk 0:02:39]} 14. Qb3 {[%clk 0:02:04]}  Qd8 {[%clk 0:02:28]} 15. Rad1 {[%clk 0:02:02]}  Nxd5 {[%clk 0:02:21]} 16. Bf2 {[%clk 0:01:57]}  Be6 {[%clk 0:02:20]} 17. Nxe6 {[%clk 0:01:56]}  fxe6 {[%clk 0:02:20]} 18. Qxb7 {[%clk 0:01:57]}  Rb8 {[%clk 0:02:18]} 19. Qxa6 {[%clk 0:01:57]}  Rxb2 {[%clk 0:02:17]} 20. Qxe6+ {[%clk 0:01:57]}  Kh8 {[%clk 0:02:16]} 21. Rxd5 {[%clk 0:01:57]}  Rxe2 {[%clk 0:02:09]} 22. Qxe2 {[%clk 0:01:56]}  Qxd5 {[%clk 0:02:08]} 23. Qxe7 {[%clk 0:01:57]}  Ra8 {[%clk 0:02:05]} 24. Re1 {[%clk 0:01:50]}  h6 {[%clk 0:02:04]} 25. a3 {[%clk 0:01:46]}  Qb3 {[%clk 0:02:00]} 26. Bd4 {[%clk 0:01:44]}  Rg8 {[%clk 0:01:49]} 27. Qe3 {[%clk 0:01:40]}  Qc4 {[%clk 0:01:41]} 28. Qxh6# {[%clk 0:01:40]} 1-0

[Event "December 19 Late 2023"]
[Site "https://www.chess.com"]
[Date "2023.12.19"]
[Round "8"]
[White "Kubatko, Ivan"]
[Black "Lutz, Igor Oscar"]
[Result "1-0"]
[Board "110"]
[TimeControl "180+1"]
[WhiteFideId "24111473"]
[BlackFideId "2110806"]
[WhiteElo "2285"]
[BlackElo "2105"]
[WhiteTeam "RUS"]
[BlackTeam "BRA"]
[WhiteClock "0:00:04"]
[BlackClock "0:00:00"]

1. e4 {[%clk 0:03:00]}  c5 {[%clk 0:02:57]} 2. Nc3 {[%clk 0:03:00]}  Nc6 {[%clk 0:02:57]} 3. f4 {[%clk 0:03:01]}  d6 {[%clk 0:02:56]} 4. Nf3 {[%clk 0:03:01]}  g6 {[%clk 0:02:57]} 5. Bc4 {[%clk 0:03:00]}  Bg7 {[%clk 0:02:57]} 6. d3 {[%clk 0:03:00]}  e6 {[%clk 0:02:56]} 7. f5 {[%clk 0:03:00]}  exf5 {[%clk 0:02:22]} 8. O-O {[%clk 0:02:59]}  Nge7 {[%clk 0:02:13]} 9. Qe1 {[%clk 0:02:56]}  O-O {[%clk 0:02:13]} 10. Qh4 {[%clk 0:02:56]}  fxe4 {[%clk 0:01:39]} 11. Ng5 {[%clk 0:02:40]}  h6 {[%clk 0:01:36]} 12. Nxf7 {[%clk 0:02:21]}  Rxf7 {[%clk 0:01:35]} 13. Rxf7 {[%clk 0:01:44]}  d5 {[%clk 0:01:14]} 14. Rxg7+ {[%clk 0:01:43]}  Kxg7 {[%clk 0:01:08]} 15. Bxh6+ {[%clk 0:01:42]}  Kg8 {[%clk 0:00:59]} 16. Qf6 {[%clk 0:01:34]}  Nf5 {[%clk 0:00:42]} 17. Bxd5+ {[%clk 0:01:29]}  Kh7 {[%clk 0:00:37]} 18. Qxd8 {[%clk 0:01:03]}  Nxd8 {[%clk 0:00:36]} 19. Bg5 {[%clk 0:01:02]}  Ne6 {[%clk 0:00:24]} 20. Bxe6 {[%clk 0:01:02]}  Bxe6 {[%clk 0:00:25]} 21. Nxe4 {[%clk 0:01:03]}  b6 {[%clk 0:00:20]} 22. Re1 {[%clk 0:00:50]}  Bd5 {[%clk 0:00:19]} 23. Nc3 {[%clk 0:00:46]}  Bc6 {[%clk 0:00:11]} 24. g4 {[%clk 0:00:44]}  Nd4 {[%clk 0:00:10]} 25. Re7+ {[%clk 0:00:44]}  Kg8 {[%clk 0:00:10]} 26. Bf6 {[%clk 0:00:36]}  Nf3+ {[%clk 0:00:09]} 27. Kf2 {[%clk 0:00:31]}  Rf8 {[%clk 0:00:08]} 28. Rg7+ {[%clk 0:00:26]}  Kh8 {[%clk 0:00:08]} 29. Rf7+ {[%clk 0:00:10]}  Kg8 {[%clk 0:00:08]} 30. Rxf8+ {[%clk 0:00:06]}  Kxf8 {[%clk 0:00:09]} 31. h3 {[%clk 0:00:06]}  Nd2 {[%clk 0:00:07]} 32. Ke3 {[%clk 0:00:03]}  Nf3 {[%clk 0:00:07]} 33. Ne4 {[%clk 0:00:02]}  Ng1 {[%clk 0:00:07]} 34. h4 {[%clk 0:00:02]}  Nh3 {[%clk 0:00:07]} 35. Be5 {[%clk 0:00:02]}  Bd7 {[%clk 0:00:05]} 36. Nf6 {[%clk 0:00:02]}  Be6 {[%clk 0:00:05]} 37. g5 {[%clk 0:00:02]}  Ng1 {[%clk 0:00:04]} 38. Kf2 {[%clk 0:00:02]}  Nh3+ {[%clk 0:00:05]} 39. Kg3 {[%clk 0:00:03]}  Kf7 {[%clk 0:00:05]} 40. Ne4 {[%clk 0:00:02]}  Bf5 {[%clk 0:00:02]} 41. Nd6+ {[%clk 0:00:03]}  Ke6 {[%clk 0:00:03]} 42. Nxf5 {[%clk 0:00:03]}  Kxf5 {[%clk 0:00:04]} 43. Bb8 {[%clk 0:00:04]}  a6 {[%clk 0:00:04]} 44. Kxh3 {[%clk 0:00:04]}  b5 {[%clk 0:00:05]} 45. Kg3 {[%clk 0:00:04]}  b4 {[%clk 0:00:00]} 46. Ba7 {[%clk 0:00:04]} 1-0

[Event "December 19 Late 2023"]
[Site "https://www.chess.com"]
[Date "2023.12.19"]
[Round "8"]
[White "Aghasiyev, Kamal"]
[Black "Golubenko, Valentina"]
[Result "1-0"]
[Board "112"]
[TimeControl "180+1"]
[WhiteFideId "13402854"]
[BlackFideId "4501993"]
[WhiteElo "2196"]
[BlackElo "2126"]
[WhiteTeam "AZE"]
[BlackTeam "CRO"]
[WhiteClock "0:01:01"]
[BlackClock "0:00:05"]

1. d4 {[%clk 0:02:59]}  Nf6 {[%clk 0:02:57]} 2. c4 {[%clk 0:02:58]}  c5 {[%clk 0:02:56]} 3. d5 {[%clk 0:02:57]}  b5 {[%clk 0:02:56]} 4. Qc2 {[%clk 0:02:55]}  d6 {[%clk 0:02:48]} 5. e4 {[%clk 0:02:53]}  bxc4 {[%clk 0:02:39]} 6. Nf3 {[%clk 0:02:52]}  g6 {[%clk 0:02:39]} 7. Be2 {[%clk 0:02:51]}  Bg7 {[%clk 0:02:39]} 8. O-O {[%clk 0:02:51]}  O-O {[%clk 0:02:39]} 9. Nc3 {[%clk 0:02:51]}  Nbd7 {[%clk 0:02:34]} 10. Nd2 {[%clk 0:02:50]}  Nb6 {[%clk 0:02:04]} 11. a4 {[%clk 0:02:47]}  a5 {[%clk 0:01:59]} 12. Nxc4 {[%clk 0:02:46]}  Nxc4 {[%clk 0:01:58]} 13. Bxc4 {[%clk 0:02:47]}  Ng4 {[%clk 0:01:54]} 14. Ra3 {[%clk 0:02:40]}  f5 {[%clk 0:01:53]} 15. exf5 {[%clk 0:02:29]}  Bxf5 {[%clk 0:01:52]} 16. Bd3 {[%clk 0:02:29]}  Bd4 {[%clk 0:01:51]} 17. Nd1 {[%clk 0:02:19]}  Bxd3 {[%clk 0:01:22]} 18. Rxd3 {[%clk 0:02:16]}  e5 {[%clk 0:01:15]} 19. dxe6 {[%clk 0:02:08]}  Ne5 {[%clk 0:00:47]} 20. Rg3 {[%clk 0:02:03]}  Qe7 {[%clk 0:00:45]} 21. Be3 {[%clk 0:01:59]}  Qxe6 {[%clk 0:00:42]} 22. Bxd4 {[%clk 0:01:58]}  cxd4 {[%clk 0:00:43]} 23. Qe4 {[%clk 0:01:55]}  Qc4 {[%clk 0:00:23]} 24. b3 {[%clk 0:01:54]}  Qc5 {[%clk 0:00:20]} 25. Nb2 {[%clk 0:01:37]}  Rae8 {[%clk 0:00:19]} 26. Nd3 {[%clk 0:01:26]}  Nxd3 {[%clk 0:00:17]} 27. Qxd3 {[%clk 0:01:26]}  Qd5 {[%clk 0:00:18]} 28. Rg4 {[%clk 0:01:21]}  Rf5 {[%clk 0:00:15]} 29. Rxd4 {[%clk 0:01:20]}  Qe5 {[%clk 0:00:15]} 30. Rxd6 {[%clk 0:01:14]}  Ref8 {[%clk 0:00:15]} 31. Qc4+ {[%clk 0:01:12]}  R8f7 {[%clk 0:00:15]} 32. Rd7 {[%clk 0:01:07]}  Rxf2 {[%clk 0:00:05]} 33. Rxf7 {[%clk 0:01:01]} 1-0

[Event "December 19 Late 2023"]
[Site "https://www.chess.com"]
[Date "2023.12.19"]
[Round "8"]
[White "Martynenko, Ivan"]
[Black "Soderstrom, Adrian"]
[Result "0-1"]
[Board "113"]
[TimeControl "180+1"]
[WhiteFideId "2053179"]
[BlackFideId "1745786"]
[WhiteElo "2264"]
[BlackElo "2154"]
[WhiteTeam "USA"]
[BlackTeam "SWE"]
[WhiteClock "0:00:06"]
[BlackClock "0:00:30"]

1. e4 {[%clk 0:03:00]}  e6 {[%clk 0:02:59]} 2. d4 {[%clk 0:03:00]}  d5 {[%clk 0:02:59]} 3. Nc3 {[%clk 0:03:01]}  dxe4 {[%clk 0:02:55]} 4. Nxe4 {[%clk 0:03:01]}  Be7 {[%clk 0:02:56]} 5. Nf3 {[%clk 0:03:01]}  Nf6 {[%clk 0:02:56]} 6. Nxf6+ {[%clk 0:02:59]}  Bxf6 {[%clk 0:02:56]} 7. c3 {[%clk 0:02:59]}  O-O {[%clk 0:02:56]} 8. Be3 {[%clk 0:03:00]}  b6 {[%clk 0:02:55]} 9. Qc2 {[%clk 0:03:00]}  Bb7 {[%clk 0:02:55]} 10. O-O-O {[%clk 0:03:01]}  Nd7 {[%clk 0:02:50]} 11. Bd3 {[%clk 0:03:01]}  h6 {[%clk 0:02:38]} 12. Ne5 {[%clk 0:02:52]}  Bxe5 {[%clk 0:02:28]} 13. dxe5 {[%clk 0:02:52]}  Qe7 {[%clk 0:02:27]} 14. f4 {[%clk 0:02:47]}  Nc5 {[%clk 0:02:21]} 15. Bh7+ {[%clk 0:02:40]}  Kh8 {[%clk 0:02:21]} 16. b4 {[%clk 0:02:40]}  Na4 {[%clk 0:02:15]} 17. Bd3 {[%clk 0:02:25]}  Bc6 {[%clk 0:02:03]} 18. Qb3 {[%clk 0:02:07]}  b5 {[%clk 0:01:52]} 19. Rhg1 {[%clk 0:01:30]}  Bd5 {[%clk 0:01:52]} 20. Qc2 {[%clk 0:01:27]}  a5 {[%clk 0:01:50]} 21. Bxb5 {[%clk 0:01:28]}  axb4 {[%clk 0:01:48]} 22. Bxa4 {[%clk 0:01:28]}  Rfb8 {[%clk 0:01:39]} 23. c4 {[%clk 0:00:50]}  Bxc4 {[%clk 0:01:35]} 24. Rd7 {[%clk 0:00:50]}  b3 {[%clk 0:01:26]} 25. axb3 {[%clk 0:00:50]}  Qa3+ {[%clk 0:01:26]} 26. Kd2 {[%clk 0:00:46]}  Bxb3 {[%clk 0:01:17]} 27. Bxb3 {[%clk 0:00:40]}  Rxb3 {[%clk 0:01:18]} 28. Rd3 {[%clk 0:00:23]}  Qb4+ {[%clk 0:01:12]} 29. Ke2 {[%clk 0:00:23]}  Rb2 {[%clk 0:01:08]} 30. Qxb2 {[%clk 0:00:18]}  Qxb2+ {[%clk 0:01:09]} 31. Kf3 {[%clk 0:00:17]}  Qb7+ {[%clk 0:01:08]} 32. Kf2 {[%clk 0:00:16]}  Ra2+ {[%clk 0:01:08]} 33. Rd2 {[%clk 0:00:17]}  Qd5 {[%clk 0:01:06]} 34. Rd1 {[%clk 0:00:15]}  c5 {[%clk 0:00:48]} 35. Kf1 {[%clk 0:00:15]}  Qc4+ {[%clk 0:00:47]} 36. Kf2 {[%clk 0:00:15]}  Rc2 {[%clk 0:00:42]} 37. Rxc2 {[%clk 0:00:14]}  Qxc2+ {[%clk 0:00:43]} 38. Rd2 {[%clk 0:00:15]}  Qe4 {[%clk 0:00:42]} 39. g3 {[%clk 0:00:14]}  c4 {[%clk 0:00:42]} 40. Rd4 {[%clk 0:00:14]}  Qc2+ {[%clk 0:00:42]} 41. Kf3 {[%clk 0:00:14]}  c3 {[%clk 0:00:38]} 42. Rd8+ {[%clk 0:00:13]}  Kh7 {[%clk 0:00:38]} 43. Rc8 {[%clk 0:00:14]}  Qd1+ {[%clk 0:00:38]} 44. Kf2 {[%clk 0:00:15]}  c2 {[%clk 0:00:39]} 45. Rc5 {[%clk 0:00:13]}  Qh1 {[%clk 0:00:38]} 46. h4 {[%clk 0:00:11]}  h5 {[%clk 0:00:30]} 47. Rc7 {[%clk 0:00:11]}  Kg6 {[%clk 0:00:30]} 48. Rc5 {[%clk 0:00:11]}  Kf5 {[%clk 0:00:30]} 49. Rc4 {[%clk 0:00:10]}  Kg4 {[%clk 0:00:30]} 50. Rc7 {[%clk 0:00:06]}  Qf3+ {[%clk 0:00:30]} 0-1

[Event "December 19 Late 2023"]
[Site "https://www.chess.com"]
[Date "2023.12.19"]
[Round "8"]
[White "Laskakis, Konstantinos"]
[Black "Quirke, Jeffrey"]
[Result "1-0"]
[Board "118"]
[TimeControl "180+1"]
[WhiteFideId "42134374"]
[BlackFideId "2013029"]
[WhiteElo "2368"]
[BlackElo "2160"]
[WhiteTeam "GRE"]
[BlackTeam "USA"]
[WhiteClock "0:00:25"]
[BlackClock "0:00:00"]

1. d4 {[%clk 0:03:00]}  e6 {[%clk 0:02:55]} 2. c4 {[%clk 0:03:00]}  b6 {[%clk 0:02:55]} 3. e4 {[%clk 0:02:59]}  Bb4+ {[%clk 0:02:54]} 4. Bd2 {[%clk 0:02:56]}  Bxd2+ {[%clk 0:02:52]} 5. Qxd2 {[%clk 0:02:56]}  d5 {[%clk 0:02:53]} 6. cxd5 {[%clk 0:02:34]}  exd5 {[%clk 0:02:52]} 7. e5 {[%clk 0:02:34]}  Ne7 {[%clk 0:02:48]} 8. Nc3 {[%clk 0:02:31]}  O-O {[%clk 0:02:47]} 9. Bd3 {[%clk 0:02:26]}  c5 {[%clk 0:02:47]} 10. Nge2 {[%clk 0:02:23]}  Nbc6 {[%clk 0:02:43]} 11. O-O {[%clk 0:02:14]}  cxd4 {[%clk 0:02:35]} 12. Nb5 {[%clk 0:02:09]}  Nxe5 {[%clk 0:02:33]} 13. Nbxd4 {[%clk 0:01:59]}  Bb7 {[%clk 0:02:28]} 14. Ng3 {[%clk 0:01:48]}  Nxd3 {[%clk 0:02:22]} 15. Qxd3 {[%clk 0:01:47]}  Qd7 {[%clk 0:02:06]} 16. Rfe1 {[%clk 0:01:45]}  Rfe8 {[%clk 0:02:03]} 17. Rac1 {[%clk 0:01:33]}  g6 {[%clk 0:02:00]} 18. Re3 {[%clk 0:01:23]}  Nc6 {[%clk 0:01:57]} 19. Rf3 {[%clk 0:01:12]}  Ne5 {[%clk 0:01:51]} 20. Qa3 {[%clk 0:01:08]}  Nxf3+ {[%clk 0:01:48]} 21. Qxf3 {[%clk 0:01:09]}  Rac8 {[%clk 0:01:43]} 22. Rd1 {[%clk 0:01:08]}  Qe7 {[%clk 0:00:57]} 23. Qg4 {[%clk 0:00:51]}  Ba6 {[%clk 0:00:41]} 24. h4 {[%clk 0:00:49]}  Rc4 {[%clk 0:00:30]} 25. b3 {[%clk 0:00:46]}  Bc8 {[%clk 0:00:27]} 26. Qf4 {[%clk 0:00:44]}  Rc3 {[%clk 0:00:20]} 27. Qd2 {[%clk 0:00:40]}  Rc7 {[%clk 0:00:19]} 28. Qf4 {[%clk 0:00:39]}  Rd7 {[%clk 0:00:18]} 29. h5 {[%clk 0:00:37]}  Bb7 {[%clk 0:00:17]} 30. h6 {[%clk 0:00:33]}  Rd6 {[%clk 0:00:16]} 31. Ngf5 {[%clk 0:00:30]}  gxf5 {[%clk 0:00:13]} 32. Nxf5 {[%clk 0:00:29]}  Qf6 {[%clk 0:00:01]} 33. Qg3+ {[%clk 0:00:25]}  Qg6 {[%clk 0:00:00]} 34. Nxd6 {[%clk 0:00:25]} 1-0